fUSD/lending_fUSD_20250523
["ID","MTS","AMOUNT","RATE_DAILY","PERIOD"]
[362094720,1747990254241,-420.0,0.00027945,4]
[362094721,1747990254248,-420.0,0.00027945,4]
[362094722,1747990254257,-590.99,0.00027945,4]
[362094723,1747990254267,-187.75412964,0.00027945,4]
[362094724,1747990254274,-281.98715524,0.00027945,4]
[362094725,1747990254281,-325.66452134,0.00027945,4]
[362094726,1747990254287,-275.99198317,0.00027945,4]
[362094727,1747990254295,-420.0,0.00027945,4]
[362094728,1747990254303,-420.0,0.00027945,4]
[362094729,1747990254310,-151.0,0.00027945,7]
[362094730,1747990254317,-420.0,0.00027945,4]
[362094731,1747990254324,-151.0,0.00027945,7]
[362094732,1747990254331,-420.0,0.00027945,4]
[362094733,1747990254339,-420.0,0.00027945,4]
[362094734,1747990254346,-164.909522,0.00027945,7]
[362094735,1747990254353,-2003.584845,0.00027945,7]
[362094736,1747990254361,-164.909522,0.00027945,7]
[362094737,1747990254370,-2003.584845,0.00027945,7]
[362094738,1747990254377,-420.0,0.00027945,4]
[362094739,1747990254384,-420.0,0.00027945,4]
[362094740,1747990254393,-420.0,0.00027945,4]
[362094741,1747990254401,-525.8193262,0.00027945,4]
[362094742,1747990254407,-420.0,0.00027945,4]
[362094743,1747990254415,-1059.36,0.00027945,4]
[362094744,1747990254423,-638.13,0.00027945,4]
[362094745,1747990254431,-3219.98,0.00027945,4]
[362094746,1747990254438,-420.0,0.00027945,4]
[362094747,1747990254446,-764.74,0.00027945,4]
[362094748,1747990254452,-420.0,0.00027945,4]
[362094749,1747990254460,-855.11,0.00027945,4]
[362094750,1747990254468,-420.0,0.00027945,4]
[362094751,1747990254475,-1568.78,0.00027945,4]
[362094752,1747990254483,-630.80732,0.00027945,7]
[362094753,1747990254490,-151.0,0.00027945,7]
[362094754,1747990254497,-630.80732,0.00027945,7]
[362094755,1747990254505,-420.0,0.00027945,4]
[362094756,1747990254514,-536.4,0.00027945,4]
[362094757,1747990254521,-420.0,0.00027945,4]
[362094758,1747990254529,-420.0,0.00027945,4]
[362094759,1747990254539,-420.0,0.00027945,4]
[362094760,1747990254546,-420.0,0.00027945,4]
[362094761,1747990254553,-387.61395126,0.00027945,4]
[362094762,1747990254561,-420.0,0.00027945,4]
[362094763,1747990254569,-420.0,0.00027945,4]
[362094764,1747990254577,-1351.93,0.00027945,4]
[362094765,1747990254584,-420.57,0.00027945,4]
[362094766,1747990254591,-519.49802885,0.00027945,4]
[362094767,1747990254599,-420.0,0.00027945,4]
[362094768,1747990254607,-420.0,0.00027945,4]
[362094769,1747990254615,-420.0,0.00027945,4]
[362094770,1747990254622,-8771.26,0.00027945,4]
[362094771,1747990254630,-420.0,0.00027945,4]
[362094772,1747990254637,-528.33,0.00027945,4]
[362094773,1747990254645,-420.0,0.00027945,4]
[362094774,1747990254652,-420.0,0.00027945,4]
[362094775,1747990254660,-666.63,0.00027945,4]
[362094776,1747990254667,-780.1,0.00027945,2]
[362094777,1747990254675,-420.0,0.00027945,4]
[362094778,1747990254682,-420.0,0.00027945,4]
[362094779,1747990254690,-420.0,0.00027945,4]
[362094780,1747990254699,-420.0,0.00027945,4]
[362094781,1747990254710,-498.47,0.00027945,4]
[362094782,1747990254719,-420.0,0.00027945,4]
[362094783,1747990254727,-921.38,0.00027945,4]
[362094784,1747990254735,-420.0,0.00027945,4]
[362094785,1747990254742,-675.59,0.00027945,4]
[362094786,1747990254749,-458.3,0.00027945,4]
[362094787,1747990254757,-3080.82,0.00027945,4]
[362094788,1747990254766,-420.0,0.00027945,4]
[362094789,1747990254774,-420.0,0.00027945,4]
[362094790,1747990254781,-202.04227,0.00027945,7]
[362094791,1747990254790,-1795.87,0.00027945,4]
[362094792,1747990254797,-202.04227,0.00027945,7]
[362094793,1747990254804,-420.0,0.00027945,4]
[362094794,1747990254812,-420.0,0.00027945,4]
[362094795,1747990254819,-952.54,0.00027945,4]
[362094796,1747990254826,-12432.5193559,0.00027965,3]
[362094797,1747990254836,-500.0,0.00027973,5]
[362094798,1747990254844,-546.31260192,0.00027973,5]
[362094799,1747990254851,-501.31620392,0.00027973,5]
[362094800,1747990254860,-8104.16187456,0.00027975,2]
[362094801,1747990254868,-151.0,0.0002798,7]
[362094802,1747990254877,-168.76118505,0.00027982,2]
[362094803,1747990254885,-151.0,0.0002799,7]
[362094804,1747990254893,-151.0,0.0002799,7]
[362094805,1747990254901,-151.0,0.0002799,7]
[362094806,1747990254909,-151.0,0.0002799,7]
[362094807,1747990254917,-37297.5580678,0.0002799,3]
[362094808,1747990254926,-420.0,0.00027999,4]
[362094809,1747990254935,-500.0,0.00027999,4]
[362094810,1747990254944,-151.0,0.00027999,7]
[362094811,1747990254956,-171.56934,0.00027999,7]
[362094812,1747990254965,-151.0,0.00027999,7]
[362094813,1747990254973,-151.0,0.00027999,7]
[362094814,1747990254981,-243.560674,0.00027999,7]
[362094815,1747990254989,-243.560674,0.00027999,7]
[362094816,1747990254997,-151.0,0.00027999,7]
[362094817,1747990255006,-151.0,0.00027999,7]
[362094818,1747990255018,-151.0,0.00027999,7]
[362094819,1747990255026,-512.226709,0.00027999,7]
[362094820,1747990255034,-512.226709,0.00027999,7]
[362094821,1747990255044,-151.0,0.00027999,7]
[362094822,1747990255054,-151.0,0.00027999,7]
[362094823,1747990255062,-164.909522,0.00027999,7]
[362094824,1747990255072,-2003.584845,0.00027999,7]
[362094825,1747990255082,-164.909522,0.00027999,7]
[362094826,1747990255092,-2003.584845,0.00027999,7]
[362094827,1747990255100,-162.144122,0.00027999,7]
[362094828,1747990255109,-162.144122,0.00027999,7]
[362094829,1747990255117,-259.759057,0.00027999,7]
[362094830,1747990255126,-259.759057,0.00027999,7]
[362094831,1747990255136,-630.80732,0.00027999,7]
[362094832,1747990255145,-151.0,0.00027999,7]
[362094833,1747990255156,-630.80732,0.00027999,7]
[362094834,1747990255166,-202.04227,0.00027999,7]
[362094835,1747990255177,-202.04227,0.00027999,7]
[362094836,1747990255187,-65000.65583592,0.00028,2]
[362094837,1747990255197,-151.0,0.00028,7]
[362094838,1747990255208,-151.0,0.00028,7]
[362094839,1747990255218,-151.0,0.00028,7]
[362094840,1747990255228,-215.93796344,0.00028071,7]
[362094841,1747990255239,-18416.84954904,0.00028071,7]
[362094842,1747990255290,-381.5,0.00028071,7]
[362094843,1747990255306,-3117.01010084,0.00028071,7]
[362094844,1747990255318,-31777.3754814,0.00028071,7]
[362094845,1747990255330,-3119.33276107,0.00028071,7]
[362094846,1747990255343,-139092.89211397,0.00028071,7]
[362094847,1747990255355,-253940.73700871,0.00028071,7]
[362094848,1747990255704,-352.16785704,0.00028071,7]
[362094849,1747990255722,-7874.5866251,0.00028071,7]
[362094850,1747990255734,-1299.4812028,0.00028071,7]
[362094851,1747990255749,-1074.83385524,0.00028071,7]
[362094852,1747990256262,250.0,0.00015,2]
[362094866,1747991024822,377.93,0.00025682,120]
[362094867,1747991112104,229.52,0.00013699,2]
[362094869,1747991250126,-300.0,0.00017,2]
[362094870,1747991250147,-1000.0,0.00017,2]
[362094871,1747991250171,-200.0,0.0001735,2]
[362094872,1747991250192,-268.52779771,0.000177,2]
[362094873,1747991369141,-216.06792533,0.000177,2]
[362094874,1747991369168,-250.0,0.00018,2]
[362094875,1747991369188,-1000.0,0.00018,2]
[362094876,1747991369213,-200.0,0.0001808,2]
[362094877,1747991369234,-250.0,0.000187,2]
[362094878,1747991369259,-200.0,0.000187,2]
[362094879,1747991369281,-239.44466619,0.00018999,2]
[362094893,1747991431866,-350.0,0.00019,2]
[362094894,1747991431876,-1000.0,0.00019,2]
[362094895,1747991431885,-300.0,0.00019999,2]
[362094896,1747991431895,-1000.0,0.0002,2]
[362094897,1747991431904,-229.52,0.00020187,2]
[362094898,1747991431913,-1200.0,0.00020999,2]
[362094899,1747991431923,-400.0,0.00021,2]
[362094900,1747991431932,-1000.0,0.00021,2]
[362094901,1747991431941,-169.28,0.00021236,2]
[362094902,1747991431951,-300.0,0.00021776,2]
[362094903,1747991431961,-420.0,0.00021777,2]
[362094904,1747991431971,-1000.0,0.00022,2]
[362094905,1747991431980,-955.68446796,0.000222,6]
[362094906,1747991431989,-955.6844677,0.000222,6]
[362094907,1747991431999,-955.6844677,0.00022417,7]
[362094908,1747991432009,-1680.0,0.00022951,2]
[362094909,1747991432018,-450.0,0.00023,2]
[362094910,1747991432027,-630.9721157,0.00023,2]
[362094911,1747991432043,-369.0278843,0.00023,2]
[362094912,1747991432052,-955.6844677,0.00023176,8]
[362094913,1747991432061,-569.0,0.00023208,2]
[362094914,1747991432070,-420.0,0.00023669,2]
[362094915,1747991432080,-955.6844677,0.00023934,10]
[362094916,1747991432090,-16.53342703,0.00024,2]
[362094917,1747991432105,-983.46657297,0.00024,2]
[362094918,1747991432115,-242.18338139,0.00024338,2]
[362094919,1747991432126,-344.95661861,0.00024338,2]
[362094920,1747991432139,-400.61813732,0.00024468,2]
[362094921,1747991432150,-630.47186268,0.00024468,2]
[362094922,1747991432159,-1109.82105153,0.00024522,2]
[362094923,1747991432175,-2237.5817208,0.00024522,2]
[362094950,1747991437959,-9966.30777892,0.00024522,2]
[362094951,1747991437971,-315.67646122,0.00024522,2]
[362094952,1747991438035,-368.47889,0.00024522,2]
[362094953,1747991438047,-623.21122955,0.00024522,2]
[362094954,1747991438090,-973.81109886,0.00024522,2]
[362094955,1747991438101,-4036.84176912,0.00024522,2]
[362094956,1747991438111,-353.19,0.00024539,2]
[362094957,1747991438123,-159.8,0.00024541,2]
[362094958,1747991438134,-150.0,0.00024605,7]
[362094959,1747991438143,-261.16823088,0.00024693,11]
[362094960,1747991438155,-694.51623682,0.00024693,11]
[362094961,1747991438164,-471.48376318,0.00024912,2]
[362094962,1747991438176,-2683.6833661,0.00024912,2]
[362095132,1747991440093,-277.04287072,0.00024912,2]
[362095134,1747991440103,-500.0,0.00025,2]
[362095136,1747991440112,-1000.0,0.00025,2]
[362095138,1747991440122,-2194.27,0.0002504,2]
[362095140,1747991440132,-363.63584668,0.00025076,2]
[362095142,1747991440145,-1298.12,0.00025077,2]
[362095143,1747991440154,-603.0,0.00025084,2]
[362095145,1747991440163,-955.6844677,0.00025452,13]
[362095147,1747991440173,-207.0,0.00025528,2]
[362095149,1747991440183,-200.0,0.00025762,2]
[362095151,1747991440192,-321.8404869,0.00025799,2]
[362095163,1747991440314,-1683.51289362,0.00025799,2]
[362095188,1747991443046,-1994.64661948,0.00025799,2]
[362095189,1747991443055,-1000.0,0.00026,2]
[362095190,1747991443064,-156.79,0.0002602,2]
[362095191,1747991443074,-156.79,0.00026034,2]
[362095192,1747991443083,-156.79,0.00026049,2]
[362095193,1747991443092,-166.11,0.00026062,2]
[362095194,1747991443101,-156.79,0.00026063,2]
[362095195,1747991443110,-156.79,0.00026078,2]
[362095196,1747991443120,-156.79,0.00026092,2]
[362095197,1747991443129,-156.79,0.00026107,2]
[362095198,1747991443143,-156.79,0.00026121,2]
[362095199,1747991443152,-169.09,0.00026135,2]
[362095200,1747991443161,-156.79,0.00026136,2]
[362095201,1747991443171,-156.79,0.0002615,2]
[362095202,1747991443182,-955.6844677,0.0002621,14]
[362095203,1747991443191,-285.79,0.00026274,2]
[362095204,1747991443200,-184.66,0.00026443,2]
[362095205,1747991443211,-229.52,0.00026676,2]
[362095206,1747991443220,-163.39,0.00026694,2]
[362095207,1747991443230,-1031.09,0.00026732,2]
[362095208,1747991443240,-955.6844677,0.00026969,16]
[362095209,1747991443249,-550.0,0.00027,2]
[362095210,1747991443259,-1000.0,0.00027,2]
[362095211,1747991443269,-165.08,0.0002701,2]
[362095212,1747991443278,-200.0,0.00027079,2]
[362095213,1747991443287,-670.04,0.00027079,2]
[362095214,1747991443297,-1000.0,0.00027079,2]
[362095215,1747991443307,-168.82,0.00027137,2]
[362095216,1747991443320,-420.0,0.00027397,4]
[362095217,1747991443330,-420.0,0.00027397,4]
[362095218,1747991443340,-420.0,0.00027397,4]
[362095219,1747991443349,-408.06258122,0.00027397,4]
[362095220,1747991443359,-420.0,0.00027397,4]
[362095221,1747991443368,-420.0,0.00027397,4]
[362095222,1747991443378,-420.0,0.00027397,4]
[362095223,1747991443387,-420.0,0.00027397,4]
[362095224,1747991443397,-433.06679872,0.00027397,4]
[362095225,1747991443407,-420.0,0.00027397,4]
[362095226,1747991443416,-464.66624641,0.00027397,4]
[362095227,1747991443426,-250.3320967,0.00027397,4]
[362095228,1747991443436,-420.0,0.00027397,4]
[362095229,1747991443446,-382.86320294,0.00027397,4]
[362095230,1747991443456,-420.0,0.00027397,4]
[362095231,1747991443466,-420.0,0.00027397,4]
[362095233,1747991443476,-420.0,0.00027397,4]
[362095235,1747991443485,-400.0,0.00027397,2]
[362095237,1747991443494,-420.0,0.00027397,4]
[362095239,1747991443504,-420.0,0.00027397,4]
[362095240,1747991443514,-224.96082971,0.00027397,4]
[362095242,1747991443525,-389.53,0.00027397,4]
[362095244,1747991443534,-420.0,0.00027397,4]
[362095246,1747991443544,-420.0,0.00027397,4]
[362095248,1747991443553,-196.46295178,0.00027397,4]
[362095250,1747991443563,-467.87,0.00027397,4]
[362095252,1747991443573,-4000.0,0.00027397,2]
[362095254,1747991443583,-159.72,0.00027397,2]
[362095256,1747991443593,-151.39,0.00027397,2]
[362095258,1747991443602,-420.0,0.00027534,4]
[362095260,1747991443612,-420.0,0.00027534,4]
[362095262,1747991443621,-420.0,0.00027534,4]
[362095264,1747991443631,-420.0,0.00027534,4]
[362095266,1747991443640,-390.01793784,0.00027534,4]
[362095268,1747991443649,-425.27904513,0.00027534,4]
[362095270,1747991443658,-262.14655967,0.00027534,4]
[362095272,1747991443668,-500.13,0.00027534,4]
[362095274,1747991443679,-420.0,0.00027534,4]
[362095275,1747991443688,-467.87,0.00027534,4]
[362095277,1747991443698,-11968.04654851,0.0002757,2]
[362095279,1747991443708,-151.0,0.00027661,7]
[362095281,1747991443718,-781.96717609,0.00027666,2]
[362095283,1747991443728,-1002.6106,0.0002767,2]
[362095285,1747991443738,-420.0,0.0002767,4]
[362095287,1747991443748,-420.0,0.0002767,4]
[362095289,1747991443758,-420.0,0.0002767,4]
[362095291,1747991443767,-420.0,0.0002767,4]
[362095293,1747991443776,-420.0,0.0002767,4]
[362095294,1747991443786,-420.0,0.0002767,4]
[362095295,1747991443796,-420.0,0.0002767,4]
[362095296,1747991443806,-420.0,0.0002767,4]
[362095297,1747991443816,-420.0,0.0002767,4]
[362095298,1747991443826,-420.0,0.0002767,4]
[362095299,1747991443835,-572.7,0.0002767,4]
[362095300,1747991443845,-386.96831943,0.0002767,4]
[362095301,1747991443855,-420.0,0.0002767,4]
[362095302,1747991443864,-420.0,0.0002767,4]
[362095303,1747991443874,-420.0,0.0002767,4]
[362095304,1747991443884,-420.0,0.0002767,4]
[362095305,1747991443893,-320.0,0.0002767,4]
[362095306,1747991443903,-420.0,0.0002767,4]
[362095307,1747991443913,-420.0,0.0002767,4]
[362095308,1747991443923,-420.0,0.0002767,4]
[362095309,1747991443932,-420.0,0.0002767,4]
[362095310,1747991443943,-558.14984447,0.0002767,4]
[362095311,1747991443953,-420.0,0.0002767,4]
[362095312,1747991443962,-420.0,0.0002767,4]
[362095313,1747991443972,-159.27700541,0.0002767,4]
[362095314,1747991443982,-420.0,0.0002767,4]
[362095315,1747991443992,-420.0,0.0002767,4]
[362095316,1747991444002,-420.0,0.0002767,4]
[362095317,1747991444011,-420.0,0.0002767,4]
[362095318,1747991444021,-420.0,0.0002767,4]
[362095319,1747991444031,-420.0,0.0002767,4]
[362095320,1747991444041,-420.0,0.0002767,4]
[362095321,1747991444052,-420.0,0.0002767,4]
[362095322,1747991444062,-420.0,0.0002767,4]
[362095323,1747991444072,-420.0,0.0002767,4]
[362095324,1747991444083,-420.0,0.0002767,4]
[362095325,1747991444092,-420.0,0.0002767,4]
[362095326,1747991444102,-420.0,0.0002767,4]
[362095327,1747991444113,-420.0,0.0002767,4]
[362095328,1747991444123,-420.0,0.0002767,4]
[362095329,1747991444134,-1000.0,0.0002767,2]
[362095330,1747991444148,-420.0,0.0002767,4]
[362095331,1747991444158,-420.0,0.0002767,4]
[362095332,1747991444169,-420.0,0.0002767,4]
[362095333,1747991444179,-420.0,0.0002767,4]
[362095334,1747991444189,-420.0,0.0002767,4]
[362095335,1747991444199,-420.0,0.0002767,4]
[362095336,1747991444209,-420.0,0.0002767,4]
[362095337,1747991444221,-420.0,0.0002767,4]
[362095338,1747991444231,-420.0,0.0002767,4]
[362095339,1747991444241,-420.0,0.0002767,4]
[362095340,1747991444250,-420.0,0.0002767,4]
[362095341,1747991444260,-420.0,0.0002767,4]
[362095342,1747991444270,-420.0,0.0002767,4]
[362095343,1747991444279,-420.0,0.0002767,4]
[362095344,1747991444289,-420.0,0.0002767,4]
[362095345,1747991444298,-714.14,0.0002767,4]
[362095346,1747991444308,-420.0,0.0002767,4]
[362095347,1747991444317,-420.0,0.0002767,4]
[362095348,1747991444327,-420.0,0.0002767,4]
[362095349,1747991444337,-1310.16,0.0002767,4]
[362095350,1747991444347,-420.0,0.0002767,4]
[362095351,1747991444357,-420.0,0.0002767,4]
[362095352,1747991444367,-420.0,0.0002767,4]
[362095353,1747991444377,-424.65,0.0002767,4]
[362095354,1747991444387,-424.53193286,0.0002767,4]
[362095355,1747991444397,-420.0,0.0002767,4]
[362095356,1747991444407,-420.0,0.0002767,4]
[362095357,1747991444417,-431.04005987,0.0002767,4]
[362095358,1747991444427,-420.0,0.0002767,4]
[362095359,1747991444437,-420.0,0.0002767,4]
[362095360,1747991444447,-420.0,0.0002767,4]
[362095361,1747991444457,-425.03487231,0.0002767,4]
[362095362,1747991444467,-420.0,0.0002767,4]
[362095363,1747991444477,-312.90754674,0.0002767,4]
[362095364,1747991444487,-420.0,0.0002767,4]
[362095365,1747991444497,-420.0,0.0002767,4]
[362095366,1747991444507,-420.0,0.0002767,4]
[362095367,1747991444518,-420.0,0.0002767,4]
[362095368,1747991444528,-420.0,0.0002767,4]
[362095369,1747991444538,-420.0,0.0002767,4]
[362095370,1747991444548,-420.0,0.0002767,4]
[362095371,1747991444558,-420.0,0.0002767,4]
[362095372,1747991444567,-420.0,0.0002767,4]
[362095373,1747991444577,-446.44946982,0.0002767,4]
[362095374,1747991444587,-420.0,0.0002767,4]
[362095375,1747991444600,-420.0,0.0002767,4]
[362095376,1747991444609,-3841.74,0.0002767,4]
[362095377,1747991444618,-430.83090265,0.0002767,4]
[362095378,1747991444631,-420.0,0.0002767,4]
[362095380,1747991444640,-475.83,0.0002767,4]
[362095382,1747991444650,-420.0,0.0002767,4]
[362095384,1747991444659,-420.0,0.0002767,4]
[362095386,1747991444669,-405.54717455,0.0002767,4]
[362095388,1747991444678,-420.0,0.0002767,4]
[362095390,1747991444688,-420.0,0.0002767,4]
[362095392,1747991444697,-420.0,0.0002767,4]
[362095394,1747991444706,-420.0,0.0002767,4]
[362095396,1747991444716,-420.0,0.0002767,4]
[362095398,1747991444726,-420.0,0.0002767,4]
[362095400,1747991444735,-824.61,0.0002767,4]
[362095402,1747991444745,-420.0,0.0002767,4]
[362095404,1747991444756,-420.0,0.0002767,4]
[362095406,1747991444765,-420.0,0.0002767,4]
[362095408,1747991444775,-420.0,0.0002767,4]
[362095410,1747991444784,-434.2,0.0002767,4]
[362095411,1747991444793,-420.0,0.0002767,4]
[362095413,1747991444803,-431.87436663,0.0002767,4]
[362095414,1747991444812,-420.0,0.0002767,4]
[362095415,1747991444822,-420.0,0.0002767,4]
[362095416,1747991444831,-420.0,0.0002767,4]
[362095417,1747991444840,-420.0,0.0002767,4]
[362095418,1747991444850,-420.0,0.0002767,4]
[362095419,1747991444859,-420.0,0.0002767,4]
[362095420,1747991444868,-420.0,0.0002767,4]
[362095421,1747991444880,-420.0,0.0002767,4]
[362095422,1747991444890,-420.0,0.0002767,4]
[362095423,1747991444899,-596.23,0.0002767,2]
[362095424,1747991444909,-420.0,0.0002767,4]
[362095425,1747991444919,-420.0,0.0002767,4]
[362095426,1747991444928,-420.0,0.0002767,4]
[362095427,1747991444938,-642.1,0.0002767,4]
[362095428,1747991444947,-420.0,0.0002767,4]
[362095429,1747991444957,-420.0,0.0002767,4]
[362095430,1747991444966,-541.4,0.0002767,4]
[362095431,1747991444976,-511.46,0.0002767,2]
[362095432,1747991444985,-420.0,0.0002767,4]
[362095433,1747991444995,-1280.62,0.0002767,4]
[362095434,1747991445005,-420.0,0.0002767,4]
[362095435,1747991445015,-420.0,0.0002767,4]
[362095436,1747991445024,-209.12680123,0.0002767,4]
[362095437,1747991445034,-432.29548459,0.0002767,4]
[362095438,1747991445043,-420.0,0.0002767,4]
[362095439,1747991445052,-420.0,0.0002767,4]
[362095440,1747991445062,-420.0,0.0002767,4]
[362095441,1747991445071,-420.0,0.0002767,4]
[362095442,1747991445080,-420.0,0.0002767,4]
[362095443,1747991445090,-427.30149424,0.0002767,4]
[362095444,1747991445099,-420.0,0.0002767,4]
[362095445,1747991445108,-420.0,0.00027671,4]
[362095446,1747991445320,-303.78425982,0.00027671,4]
[362095447,1747991445521,-116.21574018,0.00027671,4]
[362095448,1747991445531,-420.0,0.00027671,4]
[362095449,1747991445539,-420.0,0.00027671,4]
[362095450,1747991445549,-420.0,0.00027671,4]
[362095451,1747991445558,-467.87,0.00027671,4]
[362095452,1747991445567,-500.0,0.00027673,5]
[362095453,1747991445576,-176.74321065,0.00027707,2]
[362095454,1747991445585,-1379.80833,0.0002772,2]
[362095455,1747991445594,-955.6844677,0.00027728,17]
[362095456,1747991445603,-151.0,0.00027778,7]
[362095457,1747991445612,-817.0,0.00027797,2]
[362095458,1747991445622,-154.101445,0.00027798,7]
[362095459,1747991445632,-8054.70308048,0.000278,2]
[362095460,1747991445641,-300.0,0.000278,10]
[362095461,1747991445650,-155.16382616,0.00027806,2]
[362095462,1747991445660,-186.95153421,0.00027806,2]
[362095463,1747991445669,-420.0,0.00027806,4]
[362095464,1747991445679,-420.0,0.00027806,4]
[362095465,1747991445688,-505.18,0.00027806,4]
[362095466,1747991445697,-420.0,0.00027806,4]
[362095467,1747991445707,-420.0,0.00027806,4]
[362095468,1747991445716,-461.79,0.00027806,4]
[362095469,1747991445727,-1131.62,0.00027806,4]
[362095470,1747991445736,-420.0,0.00027806,4]
[362095471,1747991445747,-420.0,0.00027806,4]
[362095472,1747991445758,-527.75,0.00027806,4]
[362095473,1747991445768,-420.0,0.00027806,4]
[362095474,1747991445777,-420.0,0.00027806,4]
[362095475,1747991445787,-477.27544866,0.00027806,4]
[362095477,1747991445796,-420.0,0.00027806,4]
[362095478,1747991445805,-6943.92,0.00027806,4]
[362095479,1747991445816,-420.0,0.00027806,4]
[362095480,1747991445826,-420.0,0.00027806,4]
[362095481,1747991445835,-484.0481846,0.00027806,4]
[362095482,1747991445844,-420.0,0.00027806,4]
[362095483,1747991445853,-420.0,0.00027806,4]
[362095484,1747991445864,-420.0,0.00027806,4]
[362095485,1747991445873,-420.0,0.00027806,4]
[362095486,1747991445882,-420.0,0.00027806,4]
[362095487,1747991445891,-263.64,0.00027806,4]
[362095488,1747991445900,-617.57,0.00027806,2]
[362095489,1747991445909,-1210.43,0.00027806,4]
[362095490,1747991445918,-420.0,0.00027806,4]
[362095491,1747991445928,-729.42,0.00027806,4]
[362095492,1747991445937,-420.0,0.00027806,4]
[362095493,1747991445946,-420.0,0.00027806,4]
[362095494,1747991445955,-420.0,0.00027806,4]
[362095495,1747991445966,-421.10018118,0.00027806,2]
[362095496,1747991445976,-2438.98,0.00027806,4]
[362095497,1747991445985,-4640.96,0.00027806,4]
[362095498,1747991445995,-429.76,0.00027806,4]
[362095499,1747991446005,-2057.93,0.00027806,4]
[362095500,1747991446015,-1421.73,0.00027806,4]
[362095501,1747991446026,-420.0,0.00027806,4]
[362095502,1747991446036,-509.55,0.00027806,4]
[362095503,1747991446045,-420.0,0.00027806,4]
[362095504,1747991446055,-420.0,0.00027806,4]
[362095505,1747991446064,-838.66,0.00027806,4]
[362095506,1747991446074,-4985.69,0.00027806,4]
[362095507,1747991446083,-2018.07,0.00027806,4]
[362095508,1747991446093,-420.0,0.00027806,4]
[362095509,1747991446103,-484.37866713,0.00027806,4]
[362095510,1747991446112,-848.67,0.00027806,4]
[362095511,1747991446122,-487.82028625,0.00027806,4]
[362095512,1747991446131,-420.0,0.00027806,4]
[362095513,1747991446145,-151.0,0.00027807,7]
[362095514,1747991446155,-420.0,0.00027807,4]
[362095515,1747991446164,-420.0,0.00027807,4]
[362095516,1747991446173,-420.0,0.00027807,4]
[362095517,1747991446183,-420.0,0.00027807,4]
[362095518,1747991446193,-420.0,0.00027807,4]
[362095519,1747991446205,-420.0,0.00027807,4]
[362095520,1747991446217,-420.0,0.00027807,4]
[362095521,1747991446227,-420.0,0.00027807,4]
[362095522,1747991446237,-420.0,0.00027807,4]
[362095523,1747991446246,-420.0,0.00027807,4]
[362095524,1747991446256,-420.0,0.00027807,4]
[362095525,1747991446267,-420.0,0.00027807,4]
[362095526,1747991446276,-572.7,0.00027807,4]
[362095527,1747991446285,-420.0,0.00027807,4]
[362095528,1747991446295,-420.0,0.00027807,4]
[362095529,1747991446304,-420.0,0.00027807,4]
[362095530,1747991446314,-420.0,0.00027807,4]
[362095531,1747991446323,-420.0,0.00027807,4]
[362095532,1747991446332,-420.0,0.00027807,4]
[362095533,1747991446341,-420.0,0.00027807,4]